Cogmind - Beta 16 @@@ ROGUE MODE // 2025.10.21 @ 22:28:13 Player: jumpy Result: Destroyed by G-47 Trooper with Particle Gun Performance ------------- Evolutions (2) 1000 Regions Visited (3) 600 Robots Destroyed (17) 85 Value Destroyed (418) 418 Prototype IDs (0) 0 Alien Tech Used (0) 0 Bonus (0) 0 TOTAL SCORE: 2103 Bonus ------- None Cogmind --------- Core Integrity 0/550 Matter 149/300 Energy 82/100 System Corruption 0% Temperature Cool (18) Movement Core (50) Location -8/Materials Parts ------- > --- POWER (1) -------- (None) > --- PROPULSION (4) --- (None) > --- UTILITY (4) ------ (None) > --- WEAPON (2) ------- (None) > --- INVENTORY (5) ---- Wheel Large Storage Unit Rocket Launcher Peak State ------------ > --- POWER ------------ Light Ion Engine > --- PROPULSION ------- Medium Treads Medium Treads Medium Treads Medium Treads > --- UTILITY ---------- (None) > --- WEAPON ----------- Plasma Cannon Proton Missile Launcher > --- INVENTORY -------- Wheel Large Storage Unit Beam Cannon Rocket Launcher [Rating: 25] Favorites ----------- Power Ion Engine Engine Ion Engine Propulsion Aluminum Leg Treads Medium Treads Leg Aluminum Leg Hover Unit Improved Hover Unit Utility Small Storage Unit Storage Small Storage Unit Protection Light Armor Plating Weapon EM Pulse Gun Energy Gun EM Pulse Gun Energy Cannon Beam Cannon Ballistic Cannon Improved Light Cannon Launcher Mini Grenade Launcher Build | -11 -10 -9 -8 ------- Run | Yrd Mat Mat Mat Slots Evolved 4 | . . 2 2 Power . | . . . . Propulsion 2 | . . 1 1 Utility 2 | . . 1 1 Weapon . | . . . . Parts Attached 27 | 7 . 10 10 Power 2 | 2 . . . Engine 2 | 2 . . . Core . | . . . . Reactor . | . . . . Propulsion 12 | 2 . 4 6 Treads 4 | . . . 4 Leg 5 | 2 . 2 1 Wheel . | . . . . Hover 3 | . . 2 1 Flight . | . . . . Utility 3 | 1 . 2 . Device . | . . . . Storage 2 | 1 . 1 . Processor . | . . . . Hackware . | . . . . Protection 1 | . . 1 . Artifact . | . . . . Weapon 10 | 2 . 4 4 Energy Gun 4 | 2 . 2 . Energy Cannon 3 | . . . 3 Ballistic Gun . | . . . . Ballistic Cannon 1 | . . 1 . Launcher 2 | . . 1 1 Special Weapon . | . . . . Impact Weapon . | . . . . Slashing Weapon . | . . . . Piercing Weapon . | . . . . Special Melee Weapon . | . . . . Unidentified Prototypes . | . . . . Parts Lost 14 | . . 9 5 Power 1 | . . 1 . Propulsion 6 | . . 3 3 Utility 1 | . . 1 . Weapon 6 | . . 4 2 Highest Loss Streak 8 | . . 8 4 To Critical Strikes . | . . . . Average Backups 4 | 1 3 6 3 Power . | . 1 1 . Propulsion 2 | 1 2 3 1 Utility . | . . . . Weapon . | . . 1 1 Tool/Special . | . . . . Unused Backups 6 | 1 . 2 3 Power . | . . . . Propulsion 3 | . . 2 1 Utility 1 | . . . 1 Weapon 2 | 1 . . 1 Tool/Special . | . . . . Average Slot Usage (%) 52 | . 85 55 19 Engine 7 | . 14 7 . Treads 1 | . . . 3 Leg 17 | . 28 19 3 Hover 2 | . . 3 3 Storage 8 | . 14 9 1 Protection 1 | . . 3 . Energy Gun 9 | . 28 5 . Energy Cannon 1 | . . . 4 Ballistic Cannon 2 | . . 5 . Peak Build Rating 25 | 6 6 8 25 Average Rating 5 | 4 6 5 5 On Entrance 4 | . 6 6 6 Avg Prop Armor Cover (%) . | . . . . Naked Turns 76 | . . 42 34 Heaviest Build 17 | 14 14 17 17 Greatest Support 112 | 20 20 30 112 Greatest Overweight (x) 1 | . . 1 1 Average Overweight (x) . | . . . . Largest Inventory Capacity 8 | 8 8 8 8 Average Capacity 7 | 6 8 7 5 Most Carried 8 | 3 4 8 5 Average Carried 4 | 1 3 6 3 Final Capacity 8 | 8 8 8 5 Final Carried 4 | 3 4 3 3 Class Distribution -------------------- 100% | Mutant Dominant Class ---------------- Mutant | -10/Materials Mutant | -9/Materials Mutant | -8/Materials Resources | -11 -10 -9 -8 ----------- Run | Yrd Mat Mat Mat Matter Collected 387 | 231 35 121 . Remotely . | . . . . Salvage Created 474 | 37 85 352 . Parts 31 | 2 2 24 3 Haulers Intercepted 1 | . . 1 . Recyclers Shooed 1 | . . 1 . Parts Field Recycled . | . . . . Retrieved Matter . | . . . . Parts Self-Destructed . | . . . . Prevented . | . . . . Parts Restored . | . . . . Kills | -11 -10 -9 -8 ------- Run | Yrd Mat Mat Mat Combat Hostiles Destroyed 12 | . 2 10 . Guns 4 | . 1 3 . Cannons 4 | . . 4 . AOE 4 | . 1 3 . Classes Destroyed 7 | 1 1 4 1 Tunneler 3 | 3 . . . Hauler 1 | . . 1 . Operator 1 | . . . 1 Swarmer 4 | . . 4 . Grunt 6 | . 2 4 . Duelist 1 | . . 1 . Sentry 1 | . . 1 . Best Kill Streak 6 | 2 2 6 1 Combat Bots Only 6 | . 2 6 . Max Kills in Single Turn 2 | 1 1 2 1 Gunslinging . | . . . . Exploded 2 | . 1 2 . Melee . | . . . . Uniques/NPCs Destroyed . | . . . . Combat | -11 -10 -9 -8 -------- Run | Yrd Mat Mat Mat Hostile Shots Fired 238 | . 4 111 123 Missed 71 | . 2 30 39 Hits 167 | . 2 81 84 Melee 3 | . . 3 . Projectile 164 | . 2 78 84 Critical Strikes 6 | . . . 6 Damage Taken 2521 | . 21 1044 1456 Core 891 | . 11 328 552 Absorbed by Shields . | . . . . Core Remaining (%) 71 | 100 95 18 . Volleys Fired 51 | 3 6 35 7 Largest 2 | 2 2 2 2 Hottest 120 | 80 80 90 120 Shots Fired 73 | 6 12 45 10 Gun 41 | 6 12 23 . Cannon 29 | . . 21 8 Launcher 3 | . . 1 2 Special . | . . . . Kinetic 21 | . . 21 . Thermal 8 | . . . 8 Explosive 3 | . . 1 2 Electromagnetic 41 | 6 12 23 . Robot Hit Streak 13 | 3 2 13 5 Robot Miss Streak 6 | 2 4 6 2 Penetration Max . | . . . . Secondary Targets 1 | . . 1 . Max Gunslinging Chain 1 | . . 1 . Shots Hit Robots 45 | 3 4 32 6 Core Hits 24 | 3 3 15 3 Critical Kills . | . . . . Critical Parts Destroyed . | . . . . Critical Strikes 3 | . 1 2 . Blast 2 | . . 2 . Corrupt 1 | . 1 . . Melee Attacks . | . . . . Impact . | . . . . Slashing . | . . . . Piercing . | . . . . Sneak Attacks . | . . . . Combat Hostiles . | . . . . Follow-up Attacks . | . . . . Damage Inflicted 1075 | 132 106 646 191 Guns 321 | 52 56 213 . Cannons 427 | . . 322 105 Explosions 297 | 76 50 94 77 Melee . | . . . . Ramming 30 | 4 . 17 9 Kinetic 322 | . . 322 . Thermal 325 | 76 50 94 105 Explosive 77 | . . . 77 Electromagnetic 321 | 52 56 213 . Impact . | . . . . Slashing . | . . . . Piercing . | . . . . Highest Corruption . | . . . . Average Corruption . | . . . . Corruption Purged . | . . . . Corruption Blocked . | . . . . Overload Shots . | . . . . Overflow Damage 153 | 16 . 22 115 Projectiles . | . . . . Explosions 153 | 16 . 22 115 Melee . | . . . . Knockbacks 2 | . . 2 . Impact . | . . . . Kinetic 2 | . . 2 . Secondary . | . . . . Self-Inflicted Damage 247 | . . 48 199 Shots 3 | . . 1 2 Rammed 7 | . . 6 1 Targets Rammed 8 | 1 . 6 1 Kicked 1 | 1 . . . Crushed . | . . . . Highest Temperature 136 | 36 84 102 136 Average Temperature 39 | 18 35 40 50 Received Heat Transfer 1068 | . 12 471 585 Siege Activations . | . . . . Martial Activations . | . . . . Shielding Activations . | . . . . Robots Disrupted . | . . . . Combat Hostiles . | . . . . Robots Corrupted . | . . . . Combat Hostiles . | . . . . Parts Fried . | . . . . Impact Corruptions . | . . . . Robots Melted . | . . . . Combat Hostiles . | . . . . Parts Melted 1 | 1 . . . Heat Transferred 572 | 100 100 150 222 Parts Sabotaged . | . . . . Parts Stolen . | . . . . Parts Stripped . | . . . . Power Chain Reactions 5 | 2 1 2 . Alert | -11 -10 -9 -8 ------- Run | Yrd Mat Mat Mat Maximum Alert Level . | . . . . Low Security (%) 100 | 100 100 100 100 Level 1 . | . . . . Level 2 . | . . . . Level 3 . | . . . . Level 4 . | . . . . Level 5 . | . . . . High Security . | . . . . Max Security . | . . . . Peak Influence 132 | 10 46 132 93 Initial 37 | . . 10 37 Average 57 | 1 10 90 66 Influence Increases 587 | 15 56 350 166 Destroy 0b10 Robot/C 240 | . 40 200 . Destroy 0b10 Robot/NC 25 | 15 . 5 5 Destroy Leader 52 | . 10 42 . Disable Machine 45 | . . 15 30 Destroy Structure 60 | . 6 13 41 Partial Spotted 15 | . . . 15 Lose Combat Pursuer 150 | . . 75 75 Influence Decreases 534 | 15 30 286 203 Entered New Map 69 | . . 16 53 Time Decay 325 | 15 30 180 100 Lost Part 140 | . . 90 50 Squads Dispatched 2 | . 1 . 1 Investigation . | . . . . Extermination . | . . . . Reinforcement 2 | . 1 . 1 Assault . | . . . . Garrison . | . . . . Intercept . | . . . . Searches Triggered . | . . . . Construction Impeded . | . . . . Haulers Reinforced . | . . . . Active Scanning Responses . | . . . . Cargo Convoy Interrupts . | . . . . Stealth | -11 -10 -9 -8 --------- Run | Yrd Mat Mat Mat Distress Signals 6 | . 1 3 2 Communications Jammed . | . . . . Distress Signals . | . . . . Times Spotted 44 | . 4 19 21 Peak Tracking Total 17 | . 3 9 17 Tactical Retreats 5 | . . 2 3 Traps | -11 -10 -9 -8 ------- Run | Yrd Mat Mat Mat Traps Triggered . | . . . . Indirectly . | . . . . Trap Hack Attempts . | . . . . Triggered . | . . . . Disarmed . | . . . . Reprogrammed . | . . . . Reused . | . . . . Traps Extracted . | . . . . Installed . | . . . . Triggered . | . . . . Machines | -11 -10 -9 -8 ---------- Run | Yrd Mat Mat Mat Machines Disabled 3 | . . 1 2 Max in Single Turn 2 | . . 1 2 Machines Repaired . | . . . . Machines Dismantled . | . . . . Machines Sabotaged . | . . . . Overloaded Fab Kills . | . . . . Hacking | -11 -10 -9 -8 --------- Run | Yrd Mat Mat Mat Machines Accessed 1 | . . 1 . Terminals 1 | . . 1 . Fabricators . | . . . . Repair Stations . | . . . . Recycling Units . | . . . . Scanalyzers . | . . . . Garrison Access . | . . . . Total Hacks 2 | . . 2 . Successful 1 | . . 1 . Failed 1 | . . 1 . Catastrophic . | . . . . Database Lockouts . | . . . . Manual . | . . . . Terminals 2 | . . 2 . Fabricators . | . . . . Repair Stations . | . . . . Recycling Units . | . . . . Scanalyzers . | . . . . Garrison Access . | . . . . Terminal Hacks 1 | . . 1 . Locate Traps 1 | . . 1 . Fabricator Hacks . | . . . . Repair Station Hacks . | . . . . Recycling Unit Hacks . | . . . . Scanalyzer . | . . . . Garrison Access Hacks . | . . . . Unauthorized Hacks . | . . . . Terminals . | . . . . Fabricators . | . . . . Repair Stations . | . . . . Recycling Units . | . . . . Scanalyzers . | . . . . Garrison Access . | . . . . Data Cores Recovered . | . . . . Used . | . . . . Hacking Detections 1 | . . 1 . Full Trace Events . | . . . . Feedback Events . | . . . . Feedback Blocked . | . . . . Robot Schematics Acquired . | . . . . Robots Built . | . . . . Authchips . | . . . . Time . | . . . . Total Robot Build Rating . | . . . . Part Schematics Acquired . | . . . . Parts Built . | . . . . Authchips . | . . . . Time . | . . . . Total Part Build Rating . | . . . . Part Studies Acquired . | . . . . Parts Repaired . | . . . . Time . | . . . . Parts Recycled . | . . . . Recycled Matter . | . . . . Retrieved Matter . | . . . . Retrieved Components . | . . . . Parts Scanalyzed . | . . . . Part Schematics Acquired . | . . . . Parts Damaged . | . . . . Bothacking | -11 -10 -9 -8 ------------ Run | Yrd Mat Mat Mat Used RIF Installer . | . . . . Robots Hacked . | . . . . Non-combat . | . . . . Combat . | . . . . Robot Hacks Applied . | . . . . Relay Couplers Released . | . . . . Fabnet Peak Effective % . | . . . . Robots Rewired . | . . . . Allies Hacked . | . . . . Hacks Repelled . | . . . . Allies | -11 -10 -9 -8 -------- Run | Yrd Mat Mat Mat Total Allies . | . . . . Largest Group . | . . . . Highest-Rated Group . | . . . . Highest-Rated Ally . | . . . . Total Orders . | . . . . Ally Attacks . | . . . . Total Damage . | . . . . Kills . | . . . . Allies Corrupted . | . . . . Allies Melted . | . . . . Intel | -11 -10 -9 -8 ------- Run | Yrd Mat Mat Mat Active Infowar (turns) . | . . . . Robot Analysis Total . | . . . . Derelict Logs Recovered . | . . . . Drone Launches . | . . . . Drone Recoveries . | . . . . Exploration | -11 -10 -9 -8 ------------- Run | Yrd Mat Mat Mat Turns Passed 864 | 112 167 385 200 Spaces Moved 685 | 74 124 305 182 Core 150 | 9 . 71 70 Treads 11 | . . . 11 Legs 371 | 65 124 130 52 Wheels . | . . . . Hover 153 | . . 104 49 Flight . | . . . . Fastest Speed 50 | 50 120 50 50 Average Speed 92 | 111 120 82 82 Slowest Speed 160 | 120 120 120 160 Overloaded Moves . | . . . . Propulsion Burnouts . | . . . . Robots Hopped . | . . . . Potential Cave-ins . | . . . . Cave-ins Triggered . | . . . . Exploration Rate (%) 20 | 5 20 28 28 Regions Visited 3 Branch Regions . Pre-discovered Areas . | . . . . Known Exits Taken . | . . . . Unknown Exits Taken 3 | 1 1 1 . Scrap Searched . | . . . . Spaces Dug 5 | . . 5 . Terrain Destroyed 68 | 10 6 11 41 Melee . | . . . . Projectile . | . . . . AOE 68 | 10 6 11 41 Terrain Rammed . | . . . . Walls Destroyed . | . . . . Machines Disabled . | . . . . Actions | -11 -10 -9 -8 --------- Run | Yrd Mat Mat Mat Total 836 | 94 130 394 218 Wait 42 | 6 . 24 12 Move 683 | 74 123 304 182 Hop . | . . . . Pick Up 11 | 3 1 5 2 Fast Attach 20 | 6 . 5 9 Attach 7 | . . 6 1 Detach 1 | . . 1 . Swap 4 | 1 . 2 1 Drop 10 | 1 . 6 3 Fire 51 | 3 6 35 7 Melee . | . . . . Ram 7 | . . 6 1 Kick . | . . . . Crush . | . . . . Escape Stasis . | . . . . Rewire . | . . . . Trap . | . . . . Miscellaneous . | . . . . Route ------- -11/Scrapyard -10/Materials -9/Materials -8/Materials History --------- Turn | Location | Event 5 | -11/Scrapyard | Discovered new exit (range 15) 113 | -11/Scrapyard | Entered Materials 269 | -10/Materials | Discovered new exit (range 10) 280 | -10/Materials | Entered another Materials area 280 | -9/Materials | Evolved 2 slots: Propulsion x1, Utility x1 304 | -9/Materials | Build established: Mutant 550 | -9/Materials | Core integrity fell below 50% 567 | -9/Materials | Core integrity fell below 20% 582 | -9/Materials | Lost 8 parts (1p3n1u3w) 656 | -9/Materials | Discovered new exit (range 16) 665 | -9/Materials | Entered another Materials area 665 | -8/Materials | Evolved 2 slots: Propulsion x1, Utility x1 735 | -8/Materials | Lost 4 parts (3n1w) 787 | -8/Materials | Core integrity fell below 50% 858 | -8/Materials | Released all parts (7) 859 | -8/Materials | Core integrity fell below 20% 865 | -8/Materials | Destroyed by G-47 Trooper with Particle Gun Last Messages --------------- 00829_ Dropped Titanium Leg. 00829_ Acquired Med. Treads. 00837_ R-06 Scavenger collects Titanium Leg. 00839_ Acquired Med. Treads. 00843_ Acquired Proton Missile Launcher. 00846_ Dropped Beam Cannon. 00846_ Y-45 Defender suffers critical hit (Burn). 00851_ R-06 Scavenger collects Beam Cannon. 00852_ W-25 Informer sends out distress signal. 00852_ Critical hit (Burn: +37). 00853_ K-01 Serf collects debris. 00857_ B-36 Bruiser destroyed. 00858_ Released Proton Missile Launcher. 00858_ Released Med. Treads. 00858_ Released Lgt. Ion Engine. 00858_ Released Med. Treads. 00858_ Released Plasma Cannon. 00858_ Critical hit (Burn: +37). 00859_ K-01 Serf collects debris. 00864_ Slammed into G-47 Trooper. Map ----- +----------------------------------------------------+ | ?????????????????????????????????????????????? | | ?????????????????????????????????????????????? | | ?????????????????????????????????????????????? | | ?????????????????????????????????????????????? | | ?????????????????????????????????????????????? | | ?????????????????????????????????????????????? | | ?????????????????????????????????????????????? | | ???????????????????????? ????????????????????? | | ???????????????????????? ????????????????????? | | ???????????????????????? ????????????????????? | | ???????????????????????? ????????????????????? | | ???????????????????????? ????????????????????? | | ???????????????????????? ????????????????????? | | ???????????????????????? ????????????????????? | | ???????????????????????# #???????????????????? | | ???????????????????????# #???????????????????" | | ???????????????????????# #????????????????? | | ???????????????????????# #????????????????# | | ???????????????????????# #????????????????#""" | | ???????????????????????# #????????????????#"T | | ???????????????????????# #??###############""" | | ???????????????????????# #??#[[!![[# ]]] # | | ???????????????????????# #??#[[!![[#]]] # | | ???????????????????????# #??# # # | | ??????????# ###+#### #### ]= #%[%[ # ! | | ??????????# @ g u=]g YY ! | | ???????? " gg gg *g Y | | ?????????## t a a k | | ??????????# ! ###+######################### | | ??????????####????????????????????###???????# | | ???????????????????????????????#### ######??# | | ???????????????????????????????# #??# | | ???????????????????????????????# #??# | | ???????????????????????????????# !#??# | | ???????????????????????????????# ]]] #??# | | ???????????????????????????????# ]] """ #??# | | ???????????????????????????????# ] """ #??# | | ???????????????????????????????# """ #### | | ???????????????????????????????# / | | ???????????????????????????????#####+######## | | ??????????????????????????#######?# ####### | | ??????????????????????????# # # ## | | ??????????????????????????# """ # # #? | | ??????????????????????????# """ + " ! #? | | ??????????????????????????# """ # # #? | | ??????????????????????????# # # #? | | ??????????????????????????######### #######? | | ?????????????????????????????????# ####### | | ?????????????????????????????????# | | ?????????????????????????????????# | +----------------------------------------------------+ Best States ------------- Heat Dissipation 31 Energy Generation 10 Energy Capacity 250 Matter Stores 300 Matter Capacity 300 Sight Range 16 Terrain Scan Density 10 Armor Coverage 150 Evasion (%) 55 Recoil Reduction 4 Item Schematics ----------------- None Robot Schematics ------------------ None Fabricated ------------ Nothing Repaired ---------- Nothing Studied --------- None Alien Tech Used ----------------- None Achievements -------------- None Challenges ------------ None Game ------ Seed CoolingConcussiveLoader Manual? 0 Play Time 00:08:00 Cumulative 228.1 hours Start 2025.10.21 @ 22:22:09 End 2025.10.21 @ 22:28:13 Sessions 1 Manual Loads 0 Difficulty Rogue Special Mode None Game No. 534 Rogue 534 Adventurer 0 Explorer 0 Win Type - Total 13 Types 9/0/2/1/1/0/0/0/0/0 Lore% 78 Gallery% 68 Achievement% 44 Wizard Run 0 Options --------- Layout 0 ASCII 0 Keyboard 0 Movement Numpad Keybinds 0 Fullscreen 2 Font 18/Terminus Map View 76x50 Zoom Use 0% Tactical HUD 1 Map Filters NONE Filters SATURATION(100) Steam 1 RUN: 2edd85f6-ed7d-4f62-80d3-d4fa711fd358